bitfinex-derivatives/quotes_SOLF0:USTF0_20250606
["timestamp","ask_amount","ask_price","bid_price","bid_amount"]
[1749221184962,12.08358035,151.86,151.78,39.34]
[1749221185366,6.5817,151.83,151.8,0.04330567]
[1749221185553,0.04445521,151.84,151.8,0.04330567]
[1749221185958,12.12803556,151.84,151.8,0.04330567]
[1749221186354,51.44803556,151.84,151.8,0.04330567]
[1749221186664,6.5818,151.82,151.8,0.04330567]
[1749221186866,12.08358035,151.83,151.8,0.04330567]
[1749221187668,6.5817,151.82,151.8,0.04330567]
[1749221188161,6.5819,151.82,151.8,0.04330567]
[1749221188362,0.04445521,151.84,151.8,0.04330567]
[1749221188558,12.08358035,151.83,151.8,0.04330567]
[1749221188758,6.5822,151.81,151.8,0.04330567]
[1749221189356,11.1391,151.82,151.8,0.04330567]
[1749221190767,6.5822,151.81,151.8,0.04330567]
[1749221191667,6.5835,151.78,151.75,39.32]
[1749221191867,6.5835,151.78,151.71,391.50358035]
[1749221192060,12.08358035,151.81,151.72,39.32]
[1749221192259,6.5833,151.79,151.74,6.5849]
[1749221192866,0.04389286,151.78,151.75,0.04587902]
[1749221193071,12.08358035,151.77,151.67,51.40358035]
[1749221193271,12.08358035,151.75,151.67,51.40358035]
[1749221193477,12.08358035,151.75,151.69,6.5873]
[1749221193669,12.08358035,151.73,151.64,39.32]
[1749221193978,12.08358035,151.67,151.57,4.5314]
[1749221194174,0.04234734,151.64,151.6,0.04439284]
[1749221194372,6.5914,151.6,151.43,392.5171]
[1749221194576,12.08358035,151.59,151.48,2.0892]
[1749221194780,12.08358035,151.59,151.5,12.08358035]
[1749221195076,12.08358035,151.59,151.48,2.0892]
[1749221195278,12.08358035,151.59,151.5,12.08358035]
[1749221195483,0.04991406,151.56,151.53,0.04503241]
[1749221195878,0.04991406,151.56,151.55,6.5935]
[1749221196573,51.40358035,151.65,151.54,12.08358035]
[1749221196774,39.32,151.65,151.57,12.08358035]
[1749221196975,39.32,151.65,151.62,6.5903]
[1749221197178,39.32,151.65,151.57,12.08358035]
[1749221197579,0.04509266,151.63,151.62,6.5904]
[1749221198277,0.04509266,151.63,151.61,6.5907]
[1749221199180,12.12867301,151.63,151.59,0.0460073]
[1749221199379,12.08358035,151.61,151.59,0.0460073]
[1749221200084,12.08358035,151.61,151.53,39.32]
[1749221200477,12.08358035,151.61,151.51,12.08358035]
[1749221200478,12.08358035,151.59,151.51,12.08358035]
[1749221200782,39.34,151.61,151.5,39.34]
[1749221200783,12.08358035,151.57,151.5,39.34]
[1749221200976,18.67638035,151.57,151.5,39.34]
[1749221201176,0.04591297,151.55,151.52,0.04759535]
[1749221201577,0.04591297,151.55,151.54,6.5939]
[1749221202271,0.04591297,151.55,151.53,12.08358035]
[1749221202272,39.34,151.61,151.59,6.5915]
[1749221202477,39.34,151.61,151.55,12.08358035]
[1749221203179,39.34,151.61,151.5,101.34]
[1749221203383,0.04726924,151.57,151.54,0.04196061]
[1749221204281,6.5937,151.55,151.51,6.595]
[1749221204485,6.5937,151.55,151.48,12.08358035]
[1749221204681,12.08358035,151.56,151.46,51.42358035]
[1749221204888,12.08358035,151.51,151.43,39.34]
[1749221205187,12.08358035,151.51,151.45,6.5975]
[1749221205389,12.08358035,151.51,151.46,0.05076417]
[1749221205390,0.04215607,151.5,151.46,0.05076417]
[1749221205584,6.63805607,151.5,151.46,0.05076417]
[1749221205786,0.04215607,151.5,151.46,6.64806417]
[1749221206785,6.63775607,151.5,151.46,6.64806417]
[1749221206986,6.63775607,151.5,151.46,0.05076417]
[1749221207187,0.04215607,151.5,151.46,0.05076417]
[1749221207486,0.04215607,151.5,151.46,6.64776417]
[1749221207987,12.08358035,151.49,151.46,0.05076417]
[1749221208188,12.08358035,151.47,151.46,0.05076417]
[1749221208386,12.08358035,151.47,151.38,41.6507]
[1749221208593,18.68138035,151.45,151.4,6.5996]
[1749221208784,12.08358035,151.45,151.36,391.66358035]
[1749221208987,12.08358035,151.43,151.35,39.36]
[1749221209291,0.04878093,151.41,151.37,0.04332057]
[1749221209687,6.64868093,151.41,151.37,0.04332057]
[1749221210284,6.64868093,151.41,151.37,6.64432057]
[1749221210488,0.04878093,151.41,151.37,0.04332057]
[1749221210690,0.04878093,151.41,151.38,6.6008]
[1749221210887,0.04878093,151.41,151.37,0.04332057]
[1749221211291,0.04878093,151.41,151.37,6.64432057]
[1749221212085,0.04878093,151.41,151.38,6.6008]
[1749221212286,0.04878093,151.41,151.37,0.04332057]
[1749221212689,12.13236128,151.41,151.37,0.04332057]
[1749221212892,12.08358035,151.39,151.37,0.04332057]
[1749221213393,6.6008,151.38,151.37,0.04332057]
[1749221214684,6.602,151.36,151.27,40.48]
[1749221214887,12.08358035,151.38,151.28,12.08358035]
[1749221215087,12.08358035,151.38,151.31,6.6036]
[1749221215288,12.08358035,151.38,151.28,12.08358035]
[1749221215591,12.08358035,151.38,151.31,6.6039]
[1749221215793,0.04485349,151.34,151.31,6.64650737]
[1749221216089,0.04485349,151.34,151.33,6.603]
[1749221216389,12.08358035,151.42,151.32,12.08358035]
[1749221216589,6.6007,151.39,151.34,18.68588035]
[1749221216791,6.6007,151.39,151.31,40.48]
[1749221216991,6.6007,151.39,151.32,12.08358035]
[1749221217392,0.04671104,151.37,151.34,0.04692393]
[1749221218591,6.64791104,151.37,151.34,0.04692393]
[1749221218792,0.04671104,151.37,151.34,0.04692393]
[1749221220591,0.04671104,151.37,151.35,6.6017]
[1749221220792,0.04671104,151.37,151.34,12.13050428]
[1749221221488,0.04671104,151.37,151.34,0.04692393]
[1749221221797,0.04671104,151.37,151.35,6.6016]
[1749221221991,0.04671104,151.37,151.34,0.04692393]
[1749221222793,6.64801104,151.37,151.34,0.04692393]
[1749221223492,0.04671104,151.37,151.34,0.04692393]
[1749221224299,12.08358035,151.36,151.34,0.04692393]
[1749221224892,6.602,151.35,151.34,0.04692393]
[1749221226300,6.6026,151.34,151.29,6.6043]
[1749221226603,6.6026,151.34,151.28,40.5]
[1749221226793,6.603,151.33,151.29,6.6044]
[1749221226997,12.08358035,151.34,151.28,40.5]
[1749221227190,0.04718163,151.33,151.29,0.04996763]
[1749221227393,6.6036,151.32,151.29,0.04996763]
[1749221227795,0.04718163,151.33,151.29,0.04996763]
[1749221227998,6.6042,151.3,151.29,0.04996763]
[1749221228201,12.08358035,151.3,151.22,40.5]
[1749221228796,12.08358035,151.3,151.22,52.58358035]
[1749221228997,6.6044,151.3,151.22,52.58358035]
[1749221229195,0.04407131,151.28,151.24,0.04441316]
[1749221229998,6.64917131,151.28,151.24,0.04441316]
[1749221230400,0.04407131,151.28,151.24,0.04441316]
[1749221230701,0.04407131,151.28,151.25,6.6062]
[1749221231192,0.04407131,151.28,151.24,0.04441316]
[1749221231604,0.04407131,151.28,151.27,6.6055]
[1749221231803,4.3746,151.37,151.27,40.52]
[1749221231990,40.52,151.4,151.31,12.08358035]
[1749221232195,6.6004,151.39,151.33,12.08358035]
[1749221232395,40.52,151.4,151.33,12.08358035]
[1749221232898,0.04447983,151.38,151.35,0.04379167]
[1749221233692,0.04447983,151.38,151.35,6.64529167]
[1749221233894,0.04447983,151.38,151.35,12.12737202]
[1749221234297,0.04447983,151.38,151.36,6.6015]
[1749221234500,0.04447983,151.38,151.35,0.04379167]
[1749221235593,0.04447983,151.38,151.35,12.12737202]
[1749221236503,0.04447983,151.38,151.37,6.6011]
[1749221236903,4.4426,151.42,151.35,12.12737202]
[1749221237105,11.0416,151.42,151.38,6.6003]
[1749221237500,40.52,151.43,151.37,12.08358035]
[1749221237701,12.08358035,151.46,151.39,6.5998]
[1749221237907,0.04962132,151.44,151.41,0.04894146]
[1749221238205,6.64792132,151.44,151.41,0.04894146]
[1749221239101,6.5986,151.43,151.41,0.04894146]
[1749221239405,0.04962132,151.44,151.41,0.04894146]
[1749221239607,12.13320167,151.44,151.41,0.04894146]
[1749221240305,0.04962132,151.44,151.41,0.04894146]
[1749221240902,6.64792132,151.44,151.41,0.04894146]
[1749221241501,0.04962132,151.44,151.42,12.08358035]
[1749221241902,0.04962132,151.44,151.43,6.5985]
[1749221242111,6.67416947,151.49,151.42,12.08358035]
[1749221242303,6.67416943,151.49,151.44,12.08358035]
[1749221242501,42.5213,151.51,151.46,6.5971]
[1749221242705,42.5213,151.51,151.44,12.08358035]
[1749221243114,0.0436005,151.49,151.46,0.04477387]
[1749221243810,6.5967,151.47,151.46,0.04477387]
[1749221244214,11.16754229,151.47,151.46,0.04477387]
[1749221244403,6.5967,151.47,151.46,0.04477387]
[1749221244607,11.2043472,151.47,151.46,0.04477387]
[1749221244810,6.5967,151.47,151.46,0.04477387]
[1749221245112,6.5976,151.45,151.4,46.8996]
[1749221246013,2.2474,151.47,151.4,40.3]
[1749221246210,0.04309669,151.45,151.42,0.04787401]
[1749221246408,6.64099669,151.45,151.42,0.04787401]
[1749221246908,6.5981,151.44,151.42,0.04787401]
[1749221247417,0.04309669,151.45,151.42,0.04787401]
[1749221247609,4.63150997,151.44,151.42,0.04787401]
[1749221247915,0.04309669,151.45,151.42,0.04787401]
[1749221248114,0.04309669,151.45,151.43,6.5981]
[1749221248613,0.04309669,151.45,151.42,0.04787401]
[1749221249708,6.5981,151.44,151.42,0.04787401]
[1749221250309,6.64079669,151.45,151.42,0.04787401]
[1749221250511,0.04309669,151.45,151.42,0.04787401]
[1749221251306,0.04309669,151.45,151.44,6.598]
[1749221251513,2.2213,151.51,151.43,12.08358035]
[1749221251712,4.62201346,151.5,151.42,2.1122]
[1749221251919,12.08358035,151.5,151.42,6.5986]
[1749221252116,12.08358035,151.5,151.41,52.38358035]
[1749221252421,0.04213912,151.47,151.44,0.04208835]
[1749221252612,0.04213912,151.47,151.45,12.08358035]
[1749221253616,0.04213912,151.47,151.46,6.5971]
[1749221254310,0.04213912,151.47,151.44,0.04208835]
[1749221254809,0.04213912,151.47,151.45,6.5975]
[1749221255011,0.04213912,151.47,151.44,0.04208835]
[1749221255614,0.04213912,151.47,151.45,6.5976]
[1749221255815,0.04213912,151.47,151.44,0.04208835]
[1749221256213,0.04213912,151.47,151.45,12.08358035]
[1749221256623,0.04213912,151.47,151.46,6.5971]
[1749221257621,0.04213912,151.47,151.45,18.68098035]
[1749221258021,0.04213912,151.47,151.44,0.04208835]
[1749221258418,0.04213912,151.47,151.44,6.63988835]
[1749221258626,0.04213912,151.47,151.44,0.04208835]
[1749221259826,0.04213912,151.47,151.46,6.5971]
[1749221260227,0.04213912,151.47,151.44,0.04208835]
[1749221263733,6.5974,151.46,151.44,0.04208835]
[1749221264835,6.5976,151.45,151.44,0.04208835]
[1749221265739,14.24028035,151.46,151.38,40.28]
[1749221266133,6.5991,151.42,151.38,46.8804]
[1749221266534,6.5991,151.42,151.38,6.6004]
[1749221266738,6.6417276,151.42,151.38,6.64593969]
[1749221266941,0.0426276,151.42,151.38,0.04553969]
[1749221267341,0.0426276,151.42,151.41,6.5992]
[1749221268032,0.0426276,151.42,151.4,6.5996]
[1749221268233,0.0426276,151.42,151.38,12.12912004]
[1749221268234,0.0426276,151.42,151.38,0.04553969]
[1749221268634,0.0426276,151.42,151.38,12.12912004]
[1749221268831,0.0426276,151.42,151.38,0.04553969]
[1749221269033,6.6417276,151.42,151.39,6.5998]
[1749221269233,0.0426276,151.42,151.38,0.04553969]
[1749221270642,0.0426276,151.42,151.41,6.5993]
[1749221271343,0.0426276,151.42,151.38,0.04553969]
[1749221271840,0.0426276,151.42,151.4,6.5993]
[1749221272440,0.0426276,151.42,151.41,6.5993]
[1749221273737,0.0426276,151.42,151.38,0.04553969]
[1749221273936,0.0426276,151.42,151.39,12.08358035]
[1749221274337,0.0426276,151.42,151.41,6.5993]
[1749221275746,0.0426276,151.42,151.4,6.5997]
[1749221276344,0.0426276,151.42,151.38,18.72962004]
[1749221276743,0.0426276,151.42,151.38,12.12912004]
[1749221276943,0.0426276,151.42,151.39,6.6001]
[1749221278341,6.6418276,151.42,151.39,6.6001]
[1749221278650,0.0426276,151.42,151.4,6.5997]
[1749221279245,0.0426276,151.42,151.41,6.5993]
[1749221279452,10.8383,151.48,151.4,12.08358035]
[1749221279649,4.2418,151.48,151.43,12.08358035]
[1749221279849,4.2418,151.48,151.41,12.08358035]
[1749221280549,0.04524201,151.46,151.43,0.04662423]
[1749221282055,6.64234201,151.46,151.43,6.64482423]
[1749221282854,0.04524201,151.46,151.43,0.04662423]
[1749221283251,6.5975,151.45,151.43,6.64502423]
[1749221283456,0.04524201,151.46,151.43,6.64502423]
[1749221283845,0.04524201,151.46,151.43,0.04662423]
[1749221284452,6.5979,151.45,151.43,0.04662423]
[1749221285354,6.598,151.44,151.43,0.04662423]
[1749221286051,6.5978,151.45,151.43,0.04662423]
[1749221287353,0.04524201,151.46,151.43,0.04662423]
[1749221287657,0.04524201,151.46,151.43,12.13020458]
[1749221288053,0.04524201,151.46,151.43,0.04662423]
[1749221288252,0.04524201,151.46,151.44,6.5977]
[1749221288559,0.04524201,151.46,151.43,0.04662423]
[1749221288960,0.04524201,151.46,151.44,6.5977]
[1749221289554,0.04524201,151.46,151.43,6.64482423]
[1749221289751,6.64244201,151.46,151.43,6.64482423]
[1749221289953,0.04524201,151.46,151.44,6.5978]
[1749221290960,6.64234201,151.46,151.44,6.5978]
[1749221292559,0.04524201,151.46,151.45,6.5975]
[1749221293262,300.0,151.45,151.36,8.10663934]
[1749221293461,300.0,151.45,151.39,8.10573469]
[1749221293661,4.63750925,151.44,151.4,6.5995]
[1749221293861,6.5983,151.44,151.4,6.5995]
[1749221294058,39.5,151.46,151.39,8.10573469]
[1749221294258,0.0443093,151.44,151.41,6.64775989]
[1749221294467,6.6424093,151.44,151.41,14.75349458]
[1749221294666,0.0443093,151.44,151.41,14.75349458]
[1749221294969,0.0443093,151.44,151.42,6.5988]
[1749221295265,0.0443093,151.44,151.41,8.15439458]
[1749221295568,0.0443093,151.44,151.41,14.75339458]
[1749221296068,6.6426093,151.44,151.42,6.5987]
[1749221296468,0.0443093,151.44,151.42,6.5987]
[1749221297563,0.0443093,151.44,151.41,39.56865989]
[1749221297769,0.0443093,151.44,151.41,47.67439458]
[1749221298661,0.0443093,151.44,151.43,6.5984]
[1749221298862,8.10573469,151.48,151.43,6.5984]
[1749221299170,6.5979,151.45,151.42,6.5987]
[1749221299573,6.5979,151.45,151.41,47.67439458]
[1749221299767,6.5979,151.45,151.41,39.56865989]
[1749221299970,6.64248265,151.45,151.41,39.56865989]
[1749221300176,0.04458265,151.45,151.41,39.56865989]
[1749221300370,0.04458265,151.45,151.43,6.5982]
[1749221300570,0.04458265,151.45,151.41,39.56865989]
[1749221300878,0.04458265,151.45,151.43,6.5982]
[1749221302577,0.04458265,151.45,151.41,39.56865989]
[1749221302777,8.15031734,151.45,151.41,0.04865989]
[1749221303167,0.04458265,151.45,151.41,0.04865989]
[1749221303375,0.04458265,151.45,151.42,8.10573469]
[1749221303670,0.04458265,151.45,151.44,6.598]
[1749221304073,0.04458265,151.45,151.41,2.18405989]
[1749221304678,0.04458265,151.45,151.43,6.5982]
[1749221305177,0.04458265,151.45,151.41,2.18405989]
[1749221305581,6.64208265,151.45,151.42,6.5986]
[1749221306179,0.04458265,151.45,151.43,6.5983]
[1749221306379,0.04458265,151.45,151.41,10.28979458]
[1749221306882,0.04458265,151.45,151.44,6.598]
[1749221307283,0.04458265,151.45,151.41,10.28979458]
[1749221307484,0.04458265,151.45,151.43,6.5981]
[1749221307978,0.04458265,151.45,151.41,10.28979458]
[1749221308575,0.04458265,151.45,151.43,6.5981]
[1749221308781,0.04458265,151.45,151.41,2.18405989]
[1749221309183,6.64238265,151.45,151.42,6.5986]
[1749221309480,0.04458265,151.45,151.42,6.5986]
[1749221309688,0.04458265,151.45,151.42,6.5987]
[1749221309882,0.04458265,151.45,151.41,0.04865989]
[1749221310285,8.15031734,151.45,151.41,0.04865989]
[1749221310882,0.04458265,151.45,151.42,6.5988]
[1749221311086,0.04458265,151.45,151.41,0.04865989]
[1749221311391,0.04458265,151.45,151.42,6.5989]
[1749221311887,6.64238265,151.45,151.42,6.5989]
[1749221312984,0.04458265,151.45,151.41,0.04865989]
[1749221313181,0.04458265,151.45,151.44,6.598]
[1749221313884,4.65958531,151.5,151.44,45.358]
[1749221314089,4.65958531,151.49,151.46,8.10573469]
[1749221314296,2.0908,151.52,151.46,8.10573469]
[1749221314479,11.23889533,151.51,151.48,6.5959]
[1749221314682,4.64359533,151.5,151.48,6.5959]
[1749221314882,6.5953,151.51,151.48,6.5959]
[1749221315188,0.04904609,151.51,151.5,6.5954]
[1749221315388,2.1874,151.59,151.5,46.86573469]
[1749221315582,7.98304346,151.62,151.56,8.10573469]
[1749221315792,4.3665,151.63,151.56,8.10573469]
[1749221315985,46.86573469,151.66,151.58,8.10573469]
[1749221316290,0.04167657,151.64,151.6,8.15604656]
[1749221317488,0.04167657,151.64,151.62,6.5901]
[1749221318095,0.04167657,151.64,151.61,6.5904]
[1749221318696,8.14741126,151.64,151.6,0.05031187]
[1749221319293,14.73691126,151.64,151.6,6.64101187]
[1749221319492,8.14741126,151.64,151.6,0.05031187]
[1749221319692,6.5898,151.63,151.6,0.05031187]
[1749221320095,8.14741126,151.64,151.6,0.05031187]
[1749221320295,6.5902,151.62,151.6,0.05031187]
[1749221322203,6.5906,151.61,151.6,0.05031187]
[1749221322400,8.14741126,151.64,151.6,0.05031187]
[1749221323203,6.5904,151.62,151.6,0.05031187]
[1749221323404,8.10573469,151.62,151.6,0.05031187]
[1749221323694,0.04167657,151.64,151.6,0.05031187]
[1749221323895,8.14741126,151.64,151.6,0.05031187]
[1749221324200,6.5906,151.61,151.6,0.05031187]
[1749221324396,8.14741126,151.64,151.6,0.05031187]
[1749221324792,6.5906,151.61,151.6,0.05031187]
[1749221326304,8.14741126,151.64,151.6,0.05031187]
[1749221326506,0.04167657,151.64,151.61,8.10573469]
[1749221327101,0.04167657,151.64,151.62,6.5898]
[1749221327299,0.04167657,151.64,151.61,46.84573469]
[1749221327497,0.04167657,151.64,151.61,38.74]
[1749221327699,0.04167657,151.64,151.61,45.3305]
[1749221328893,0.04167657,151.64,151.62,6.5901]
[1749221329102,0.04167657,151.64,151.62,14.69583469]
[1749221329300,0.04167657,151.64,151.62,8.10573469]
[1749221329504,0.04167657,151.64,151.63,6.5897]
[1749221330404,8.10573469,151.7,151.65,0.04167657]
[1749221330596,8.10573469,151.68,151.61,38.74]
[1749221330794,6.5891,151.65,151.61,45.3303]
[1749221331199,6.5891,151.65,151.61,38.74]
[1749221331404,0.04921393,151.65,151.61,38.78788438]
[1749221331603,0.04921393,151.65,151.62,6.5901]
[1749221331998,0.04921393,151.65,151.62,14.69583469]
[1749221332403,0.04921393,151.65,151.62,8.10573469]
[1749221333004,0.04921393,151.65,151.63,6.5895]
[1749221333500,49.02973469,151.72,151.64,8.10573469]
[1749221333804,49.02973469,151.72,151.66,8.10573469]
[1749221333999,6.5878,151.68,151.64,8.10573469]
[1749221334205,49.02973469,151.72,151.64,8.10573469]
[1749221334607,6.5873,151.69,151.66,6.6326153]
[1749221334800,0.05017176,151.7,151.66,6.6326153]
[1749221334801,0.05017176,151.7,151.66,0.0445153]
[1749221335201,0.05017176,151.7,151.67,8.10573469]
[1749221335598,0.05017176,151.7,151.66,0.0445153]
[1749221335599,0.05017176,151.7,151.69,8.10573469]
[1749221336412,0.05017176,151.7,151.67,8.10573469]
[1749221336905,2.0915,151.78,151.69,8.10573469]
[1749221337096,2.0915,151.78,151.73,8.10573469]
[1749221337502,8.6751,151.78,151.73,12.10116142]
[1749221338011,6.62875135,151.77,151.74,0.04583769]
[1749221338506,0.04505135,151.77,151.75,6.5845]
[1749221338808,0.04505135,151.77,151.74,0.04583769]
[1749221339009,12.10116142,151.76,151.74,0.04583769]
[1749221339307,12.10116142,151.76,151.7,38.54]
[1749221339707,12.10116142,151.74,151.67,38.54]
[1749221340205,0.04995892,151.72,151.69,0.04651276]
[1749221340607,6.5865,151.71,151.69,0.04651276]
[1749221340808,12.10116142,151.7,151.57,379.5]
[1749221341003,12.10116142,151.68,151.6,12.10116142]
[1749221341209,6.5882,151.67,151.64,6.5893]
[1749221341411,6.5882,151.67,151.6,12.10116142]
[1749221341910,0.04439456,151.65,151.63,6.5894]
[1749221342107,0.04439456,151.65,151.62,0.0450595]
[1749221344314,6.63339456,151.65,151.62,0.0450595]
[1749221344613,0.04439456,151.65,151.62,50.68622092]
[1749221344913,0.04439456,151.65,151.63,6.5895]
[1749221345913,0.04439456,151.65,151.64,6.5893]
[1749221347107,2.1506,151.7,151.62,50.68622092]
[1749221347313,38.54,151.71,151.64,12.10116142]
[1749221347712,12.10116142,151.68,151.62,38.54]
[1749221348109,6.5887,151.66,151.63,6.63133977]
[1749221348616,6.5893,151.65,151.63,0.04193977]
[1749221349117,18.69046142,151.64,151.63,0.04193977]
[1749221349316,6.5893,151.64,151.63,0.04193977]
[1749221350907,18.69046142,151.64,151.63,0.04193977]
[1749221351110,12.10116142,151.64,151.58,6.5917]
[1749221351406,12.10116142,151.64,151.54,14.22456142]
[1749221351407,12.10116142,151.62,151.54,52.76456142]
[1749221351616,6.5913,151.6,151.54,52.76456142]
[1749221351816,38.54,151.63,151.54,52.76456142]
[1749221352118,0.04424259,151.6,151.58,6.5917]
[1749221352511,0.04424259,151.6,151.57,0.04542085]
[1749221353006,6.63544259,151.6,151.57,6.63752085]
[1749221353412,0.04424259,151.6,151.57,0.04542085]
[1749221353605,0.04424259,151.6,151.58,6.5918]
[1749221354109,0.04424259,151.6,151.59,6.5915]
[1749221354710,0.04424259,151.6,151.58,6.5917]
[1749221355213,0.04424259,151.6,151.59,6.5915]
[1749221356715,0.04424259,151.6,151.58,6.5917]
[1749221357111,0.04424259,151.6,151.57,6.63772085]
[1749221357719,0.04424259,151.6,151.57,0.04542085]
[1749221357920,6.5917,151.59,151.57,0.04542085]
[1749221358116,0.04424259,151.6,151.57,0.04542085]
[1749221358822,6.5919,151.58,151.57,0.04542085]
[1749221359217,6.5917,151.59,151.57,0.04542085]
[1749221359518,0.04424259,151.6,151.57,0.04542085]
[1749221359714,16.77597364,151.59,151.5,418.1]
[1749221359915,6.89201222,151.58,151.5,418.1]
[1749221360228,6.5935,151.55,151.52,6.5943]
[1749221360526,2.2172,151.58,151.5,430.20116142]
[1749221360723,4.67034216,151.57,151.5,430.20116142]
[1749221360922,0.04826906,151.56,151.52,0.04950464]
[1749221361316,0.04826906,151.56,151.53,6.5937]
[1749221361521,0.04826906,151.56,151.52,0.04950464]
[1749221361716,6.5937,151.54,151.52,0.04950464]
[1749221362416,0.04826906,151.56,151.52,0.04950464]
[1749221363325,0.04826906,151.56,151.54,6.5934]
[1749221363926,0.04826906,151.56,151.55,6.5932]
[1749221365227,0.04826906,151.56,151.54,6.5934]
[1749221365426,0.04826906,151.56,151.52,0.04950464]
[1749221365628,6.64126906,151.56,151.52,0.04950464]
[1749221366429,0.04826906,151.56,151.52,0.04950464]
[1749221367425,6.64126906,151.56,151.54,6.5936]
[1749221368232,0.04826906,151.56,151.55,6.5932]
[1749221368523,0.04826906,151.56,151.52,0.04950464]
[1749221368930,0.04826906,151.56,151.55,6.5932]
[1749221369526,0.04826906,151.56,151.52,0.04950464]
[1749221369926,0.04826906,151.56,151.54,6.5934]
[1749221370930,0.04826906,151.56,151.55,6.5932]
[1749221371230,0.04826906,151.56,151.52,0.04950464]
[1749221371432,0.04826906,151.56,151.54,6.5934]
[1749221371927,0.04826906,151.56,151.52,0.04950464]
[1749221372127,0.04826906,151.56,151.55,6.5932]
[1749221376330,0.04826906,151.56,151.54,6.5936]
[1749221377325,6.64126906,151.56,151.54,6.5936]
[1749221377831,0.04826906,151.56,151.52,0.04950464]
[1749221378237,0.04826906,151.56,151.55,6.5932]
[1749221379838,0.04826906,151.56,151.53,8.08839248]
[1749221380340,6.64106906,151.56,151.53,14.68209248]
[1749221380540,6.64106906,151.56,151.53,8.08839248]
[1749221380740,0.04826906,151.56,151.53,8.08839248]
[1749221380941,0.04826906,151.56,151.54,6.5936]
[1749221381738,6.64136906,151.56,151.54,6.5936]
[1749221382141,0.04826906,151.56,151.54,6.5936]
[1749221382840,6.64106906,151.56,151.54,6.5936]
[1749221383341,0.04826906,151.56,151.54,6.5936]
[1749221384039,387.76839248,151.64,151.55,8.08839248]
[1749221384240,38.26,151.65,151.58,8.08839248]
[1749221384440,4.65775638,151.64,151.58,8.08839248]
[1749221384736,6.5904,151.62,151.58,8.08839248]
[1749221385139,6.5906,151.61,151.59,6.5912]
[1749221385742,6.5906,151.61,151.58,8.13468278]
[1749221385743,0.04742852,151.62,151.6,8.08839248]
[1749221386138,0.04742852,151.62,151.61,6.5906]
[1749221386939,50.86009248,151.69,151.64,6.5889]
[1749221387145,4.66298494,151.68,151.64,6.5889]
[1749221387337,50.86009248,151.69,151.64,6.5889]
[1749221387534,4.66298447,151.68,151.65,14.67689248]
[1749221387735,40.5513,151.69,151.65,8.08839248]
[1749221387933,0.04462932,151.69,151.65,8.13902811]
[1749221388146,0.04462932,151.69,151.67,8.08839248]
[1749221388642,0.04462932,151.69,151.68,6.5875]
[1749221390140,10.36019248,151.76,151.67,8.08839248]
[1749221390141,2.2718,151.76,151.71,6.5862]
[1749221390443,4.70469044,151.75,151.68,8.08839248]
[1749221390742,12.79308292,151.74,151.68,8.08839248]
[1749221390938,4.72646548,151.73,151.68,8.08839248]
[1749221391133,0.04341761,151.72,151.69,0.0474839]
[1749221391740,6.5862,151.71,151.69,0.0474839]
[1749221391944,0.04341761,151.72,151.7,8.08839248]
[1749221392547,0.04341761,151.72,151.7,14.67489248]
[1749221392846,0.04341761,151.72,151.7,8.08839248]
[1749221393044,0.04341761,151.72,151.69,0.0474839]
[1749221393942,0.04341761,151.72,151.7,8.08839248]
[1749221394147,0.04341761,151.72,151.7,14.67479248]
[1749221394344,0.04341761,151.72,151.7,8.08839248]
[1749221394650,10.38989248,151.8,151.7,45.28839248]
[1749221394942,4.71562408,151.79,151.74,8.08839248]
[1749221395247,6.5845,151.76,151.72,8.08839248]
[1749221395438,4.71558237,151.79,151.74,8.08839248]
[1749221395635,6.62458569,151.78,151.75,6.62660094]
[1749221395839,0.04108569,151.78,151.75,0.04230094]
[1749221396046,6.584,151.77,151.75,0.04230094]
[1749221396547,0.04108569,151.78,151.75,0.04230094]
[1749221397241,6.5841,151.76,151.75,0.04230094]
[1749221400846,0.04108569,151.78,151.75,0.04230094]
[1749221401444,0.04108569,151.78,151.75,8.13069342]
[1749221401944,8.12947817,151.78,151.75,0.04230094]
[1749221402146,8.08839248,151.76,151.75,0.04230094]
[1749221402350,14.67249248,151.76,151.75,0.04230094]
[1749221402546,6.5841,151.76,151.75,0.04230094]
[1749221403350,8.12947817,151.78,151.75,0.04230094]
[1749221403553,0.04108569,151.78,151.75,0.04230094]
[1749221403749,0.04108569,151.78,151.75,8.13069342]
[1749221404049,37.2,151.84,151.77,8.08839248]
[1749221404252,8.08839248,151.86,151.79,8.08839248]
[1749221404445,6.5811,151.83,151.8,6.582]
[1749221404649,8.08839248,151.84,151.76,2.2416]
[1749221404849,8.08839248,151.84,151.75,37.2]
[1749221404850,8.08839248,151.82,151.75,37.2]